[Event "*** Titled Tuesday Blitz"]
[Site "Chess.com"]
[Date "2019.11.05"]
[Round "9"]
[White "Guenplen"]
[Black "Gabrielian_Artur"]
[Result "1-0"]
[WhiteElo "2976"]
[BlackElo "2822"]
[TimeControl "180+2"]
[EndTime "15:06:05 PST"]
[Termination "Guenplen won by resignation"]

1. Nf3 {[%clk 0:03:01.9]} 1... Nf6 {[%clk 0:03:00.6]} 2. c4 {[%clk 0:03:03]}
2... g6 {[%clk 0:03:01]} 3. Nc3 {[%clk 0:03:03.7]} 3... Bg7 {[%clk 0:03:01.8]}
4. g3 {[%clk 0:03:03.1]} 4... O-O {[%clk 0:03:02.1]} 5. Bg2 {[%clk 0:03:04.5]}
5... d6 {[%clk 0:03:03.3]} 6. d4 {[%clk 0:03:05.3]} 6... Nbd7 {[%clk 0:03:04.2]}
7. O-O {[%clk 0:03:06.5]} 7... e5 {[%clk 0:03:05.4]} 8. Qc2 {[%clk 0:03:05.8]}
8... Re8 {[%clk 0:03:06]} 9. Rd1 {[%clk 0:03:06.2]} 9... c6 {[%clk 0:03:01]} 10.
e4 {[%clk 0:03:06.6]} 10... exd4 {[%clk 0:02:52.1]} 11. Nxd4 {[%clk 0:03:08.5]}
11... Nc5 {[%clk 0:02:52.3]} 12. Bf4 {[%clk 0:03:06.7]} 12... Bg4 {[%clk
0:02:32.8]} 13. Rd2 {[%clk 0:02:56.6]} 13... Qe7 {[%clk 0:02:29.1]} 14. Nxc6
{[%clk 0:02:47.7]} 14... bxc6 {[%clk 0:02:23.5]} 15. Bxd6 {[%clk 0:02:48.4]}
15... Qe6 {[%clk 0:02:20.9]} 16. Bxc5 {[%clk 0:02:49.2]} 16... Qxc4 {[%clk
0:02:21.5]} 17. Bd6 {[%clk 0:02:39.7]} 17... Nd7 {[%clk 0:02:12.7]} 18. h3
{[%clk 0:02:25.2]} 18... Bxh3 {[%clk 0:00:55.2]} 19. Bxh3 {[%clk 0:02:22.7]}
19... Ne5 {[%clk 0:00:56.4]} 20. Bxe5 {[%clk 0:02:14.4]} 20... Bxe5 {[%clk
0:00:56.9]} 21. Bf1 {[%clk 0:02:00.5]} 21... Qc5 {[%clk 0:00:57.5]} 22. Na4
{[%clk 0:01:52.3]} 22... Qa5 {[%clk 0:00:56.3]} 23. Rad1 {[%clk 0:01:49.9]}
23... Rab8 {[%clk 0:00:50.1]} 24. b3 {[%clk 0:01:50.6]} 24... Bg7 {[%clk
0:00:48.7]} 25. Qc5 {[%clk 0:01:48.5]} 25... Qb4 {[%clk 0:00:19.3]} 26. Qxb4
{[%clk 0:01:43.9]} 26... Rxb4 {[%clk 0:00:20.3]} 27. f3 {[%clk 0:01:39.8]} 27...
Bf6 {[%clk 0:00:12.6]} 28. Bc4 {[%clk 0:01:37.7]} 28... Re7 {[%clk 0:00:10.2]}
29. Rd7 {[%clk 0:01:37.1]} 29... Rb7 {[%clk 0:00:11.3]} 30. Rxb7 {[%clk
0:01:37.3]} 30... Rxb7 {[%clk 0:00:11.7]} 31. Kg2 {[%clk 0:01:37.1]} 31... Kg7
{[%clk 0:00:12.2]} 32. f4 {[%clk 0:01:38.3]} 1-0

[Event "*** Titled Tuesday Blitz"]
[Site "Chess.com"]
[Date "2019.11.05"]
[Round "9"]
[White "saraswathii"]
[Black "medalja"]
[Result "1-0"]
[WhiteElo "2239"]
[BlackElo "2369"]
[TimeControl "180+2"]
[EndTime "15:06:06 PST"]
[Termination "saraswathii won by resignation"]

1. d4 {[%clk 0:03:01.9]} 1... Nf6 {[%clk 0:01:41.3]} 2. Bf4 {[%clk 0:03:00.3]}
2... d5 {[%clk 0:01:41]} 3. e3 {[%clk 0:03:00.1]} 3... c5 {[%clk 0:01:42]} 4. c3
{[%clk 0:03:00.8]} 4... e6 {[%clk 0:01:42.4]} 5. Nd2 {[%clk 0:03:01.1]} 5... Bd6
{[%clk 0:01:43.7]} 6. Bg3 {[%clk 0:03:01.7]} 6... O-O {[%clk 0:01:44.9]} 7. Ngf3
{[%clk 0:03:02.8]} 7... Qc7 {[%clk 0:01:46.2]} 8. Bd3 {[%clk 0:03:03.2]} 8... b6
{[%clk 0:01:44.1]} 9. O-O {[%clk 0:03:03.7]} 9... Ba6 {[%clk 0:01:45.3]} 10.
Bxa6 {[%clk 0:02:59.6]} 10... Nxa6 {[%clk 0:01:47.2]} 11. Qe2 {[%clk 0:03:00.8]}
11... Nb8 {[%clk 0:01:46.7]} 12. Ne5 {[%clk 0:02:54.9]} 12... Nbd7 {[%clk
0:01:44.2]} 13. f4 {[%clk 0:02:55.1]} 13... Ne4 {[%clk 0:01:45.3]} 14. Nxe4
{[%clk 0:02:55.2]} 14... dxe4 {[%clk 0:01:47.2]} 15. Qc2 {[%clk 0:02:52.9]}
15... Bxe5 {[%clk 0:01:43.1]} 16. fxe5 {[%clk 0:02:52.2]} 16... Qc6 {[%clk
0:01:35.7]} 17. Bh4 {[%clk 0:02:40.9]} 17... f5 {[%clk 0:01:27.8]} 18. exf6
{[%clk 0:02:40]} 18... Nxf6 {[%clk 0:01:28.2]} 19. Rf4 {[%clk 0:02:39.5]} 19...
cxd4 {[%clk 0:01:11.3]} 20. exd4 {[%clk 0:02:36.8]} 20... e5 {[%clk 0:01:09.3]}
21. dxe5 {[%clk 0:02:26.5]} 21... Qc5+ {[%clk 0:01:09.8]} 22. Qf2 {[%clk
0:02:13.1]} 22... e3 {[%clk 0:01:10.2]} 23. Qe2 {[%clk 0:02:09.4]} 23... Qxe5
{[%clk 0:01:03.2]} 24. Raf1 {[%clk 0:02:07.9]} 24... g5 {[%clk 0:01:03.6]} 25.
Rf5 {[%clk 0:02:05.2]} 25... Qe4 {[%clk 0:00:52.5]} 26. Rxg5+ {[%clk 0:01:51.2]}
26... Kh8 {[%clk 0:00:53.1]} 27. Rxf6 {[%clk 0:01:46.6]} 27... Rxf6 {[%clk
0:00:53]} 28. Rg4 {[%clk 0:01:47.4]} 28... Rf4 {[%clk 0:00:48.4]} 29. Bf6+
{[%clk 0:01:47.6]} 29... Rxf6 {[%clk 0:00:47.2]} 30. Rxe4 {[%clk 0:01:48.3]}
30... Raf8 {[%clk 0:00:24.4]} 31. Rxe3 {[%clk 0:01:46.9]} 31... a5 {[%clk
0:00:22.6]} 32. Re8 {[%clk 0:01:43.1]} 32... a4 {[%clk 0:00:24.5]} 33. Qe5
{[%clk 0:01:32.2]} 33... Kg8 {[%clk 0:00:23.8]} 34. Rxf8+ {[%clk 0:01:31.4]}
34... Rxf8 {[%clk 0:00:25.7]} 35. Qe6+ {[%clk 0:01:32.3]} 35... Kg7 {[%clk
0:00:26.2]} 36. Qxb6 {[%clk 0:01:33]} 1-0

[Event "*** Titled Tuesday Blitz"]
[Site "Chess.com"]
[Date "2019.11.05"]
[Round "9"]
[White "isla88"]
[Black "semchik73"]
[Result "0-1"]
[WhiteElo "2190"]
[BlackElo "2405"]
[TimeControl "180+2"]
[EndTime "15:06:22 PST"]
[Termination "semchik73 won by resignation"]

1. c4 {[%clk 0:03:01.9]} 1... e5 {[%clk 0:03:00.5]} 2. Nc3 {[%clk 0:03:00.9]}
2... Nf6 {[%clk 0:03:01.7]} 3. Nf3 {[%clk 0:02:57.2]} 3... Nc6 {[%clk
0:03:02.9]} 4. e3 {[%clk 0:02:56.5]} 4... Bb4 {[%clk 0:02:58.4]} 5. Qc2 {[%clk
0:02:52.4]} 5... O-O {[%clk 0:02:55.9]} 6. Nd5 {[%clk 0:02:52.2]} 6... d6 {[%clk
0:02:45.6]} 7. a3 {[%clk 0:02:36.4]} 7... Ba5 {[%clk 0:02:31.2]} 8. b4 {[%clk
0:02:30.4]} 8... Bb6 {[%clk 0:02:31.8]} 9. Ng5 {[%clk 0:02:15.1]} 9... g6 {[%clk
0:02:29.2]} 10. Nxf6+ {[%clk 0:02:15.9]} 10... Qxf6 {[%clk 0:02:29.5]} 11. Ne4
{[%clk 0:02:17.8]} 11... Qe7 {[%clk 0:02:26.5]} 12. Bb2 {[%clk 0:02:11.8]} 12...
f5 {[%clk 0:02:24.9]} 13. Nc3 {[%clk 0:02:12.3]} 13... Be6 {[%clk 0:02:23.1]}
14. Nd5 {[%clk 0:02:09.2]} 14... Bxd5 {[%clk 0:02:20.9]} 15. cxd5 {[%clk
0:02:09.9]} 15... Nd8 {[%clk 0:02:22]} 16. Be2 {[%clk 0:02:04.7]} 16... c6
{[%clk 0:02:18]} 17. dxc6 {[%clk 0:02:03.4]} 17... Nxc6 {[%clk 0:02:18.9]} 18.
Bc4+ {[%clk 0:02:01.7]} 18... Kg7 {[%clk 0:02:18.5]} 19. O-O {[%clk 0:02:00.1]}
19... Rac8 {[%clk 0:02:19.5]} 20. Qb3 {[%clk 0:02:00.1]} 20... Rfd8 {[%clk
0:02:14.2]} 21. f4 {[%clk 0:01:59.8]} 21... Kf8 {[%clk 0:01:56.2]} 22. fxe5
{[%clk 0:01:51.3]} 22... dxe5 {[%clk 0:01:53.8]} 23. Be6 {[%clk 0:01:46.7]}
23... Rc7 {[%clk 0:01:47.8]} 24. a4 {[%clk 0:01:44.2]} 24... Rxd2 {[%clk
0:01:39.5]} 25. Ba3 {[%clk 0:01:34]} 25... Nd8 {[%clk 0:01:20.7]} 26. Bd5 {[%clk
0:01:00]} 26... Qg5 {[%clk 0:01:17.8]} 27. b5+ {[%clk 0:00:45.5]} 27... Kg7
{[%clk 0:01:17.1]} 28. Rae1 {[%clk 0:00:17.1]} 28... Rcc2 {[%clk 0:01:11.8]} 29.
a5 {[%clk 0:00:13.4]} 29... Rxg2+ {[%clk 0:01:10.7]} 0-1

[Event "*** Titled Tuesday Blitz"]
[Site "Chess.com"]
[Date "2019.11.05"]
[Round "9"]
[White "vinniethepooh"]
[Black "MartinZumsande"]
[Result "1-0"]
[WhiteElo "2700"]
[BlackElo "2563"]
[TimeControl "180+2"]
[EndTime "15:06:47 PST"]
[Termination "vinniethepooh won by resignation"]

1. e4 {[%clk 0:03:01.9]} 1... e6 {[%clk 0:02:59]} 2. g3 {[%clk 0:02:58.5]} 2...
d5 {[%clk 0:02:59.8]} 3. Bg2 {[%clk 0:03:00.2]} 3... Nf6 {[%clk 0:03:00.5]} 4.
e5 {[%clk 0:02:53.4]} 4... Nfd7 {[%clk 0:03:01.1]} 5. f4 {[%clk 0:02:55.3]} 5...
c5 {[%clk 0:02:57.6]} 6. Nf3 {[%clk 0:02:53.8]} 6... Nc6 {[%clk 0:02:58.7]} 7.
O-O {[%clk 0:02:54.6]} 7... Be7 {[%clk 0:02:56.9]} 8. b3 {[%clk 0:02:54.8]} 8...
O-O {[%clk 0:02:57.3]} 9. Bb2 {[%clk 0:02:56.2]} 9... b5 {[%clk 0:02:57.4]} 10.
a4 {[%clk 0:02:54]} 10... b4 {[%clk 0:02:58.7]} 11. d3 {[%clk 0:02:49.9]} 11...
Bb7 {[%clk 0:02:58.3]} 12. Nbd2 {[%clk 0:02:50.2]} 12... a5 {[%clk 0:02:54.8]}
13. Kh1 {[%clk 0:02:48.3]} 13... f5 {[%clk 0:02:38]} 14. exf6 {[%clk 0:02:44.1]}
14... Bxf6 {[%clk 0:02:39.2]} 15. Qc1 {[%clk 0:02:38.2]} 15... e5 {[%clk
0:02:34.3]} 16. Ng5 {[%clk 0:02:32.2]} 16... Bxg5 {[%clk 0:02:22.6]} 17. Bxd5+
{[%clk 0:02:27]} 17... Kh8 {[%clk 0:02:23.6]} 18. fxg5 {[%clk 0:02:28.6]} 18...
Qxg5 {[%clk 0:02:06.1]} 19. Ne4 {[%clk 0:02:28.6]} 19... Qg6 {[%clk 0:01:53]}
20. Qg5 {[%clk 0:02:22.8]} 20... Nb6 {[%clk 0:01:39.2]} 21. Qxg6 {[%clk
0:02:14.3]} 21... hxg6 {[%clk 0:01:41.1]} 22. Nxc5 {[%clk 0:02:14.4]} 22... Nxd5
{[%clk 0:01:36.9]} 23. Nxb7 {[%clk 0:02:14.4]} 23... Ne3 {[%clk 0:01:33.7]} 24.
Rxf8+ {[%clk 0:02:05.4]} 24... Rxf8 {[%clk 0:01:35.6]} 25. Rc1 {[%clk
0:02:00.9]} 25... Rf2 {[%clk 0:01:30.1]} 26. Nd6 {[%clk 0:02:00.1]} 26... Nd4
{[%clk 0:01:11.9]} 27. Bxd4 {[%clk 0:01:51.4]} 27... exd4 {[%clk 0:01:13.8]} 28.
Nc4 {[%clk 0:01:48.3]} 28... Ng4 {[%clk 0:00:50.9]} 29. h3 {[%clk 0:01:42.5]}
29... Rh2+ {[%clk 0:00:47.2]} 30. Kg1 {[%clk 0:01:43.4]} 30... Rxh3 {[%clk
0:00:48.8]} 31. Kg2 {[%clk 0:01:45.1]} 31... Rh2+ {[%clk 0:00:49]} 32. Kf3
{[%clk 0:01:46.8]} 32... Nf6 {[%clk 0:00:42.2]} 33. Ne5 {[%clk 0:01:42.3]} 33...
Nd5 {[%clk 0:00:24.8]} 34. Nxg6+ {[%clk 0:01:37.3]} 34... Kh7 {[%clk 0:00:24.6]}
35. Ne5 {[%clk 0:01:36.7]} 35... Ne3 {[%clk 0:00:23.1]} 36. Nc4 {[%clk
0:01:32.8]} 36... Rxc2 {[%clk 0:00:23.5]} 37. Rxc2 {[%clk 0:01:26.6]} 37... Nxc2
{[%clk 0:00:25.4]} 38. Nxa5 {[%clk 0:01:26.1]} 38... Kg6 {[%clk 0:00:26.7]} 39.
Ke4 {[%clk 0:01:25.8]} 39... Kf6 {[%clk 0:00:24.3]} 40. Nc6 {[%clk 0:01:27]}
40... Ke6 {[%clk 0:00:25.5]} 41. Nxd4+ {[%clk 0:01:27.3]} 41... Nxd4 {[%clk
0:00:24.9]} 42. Kxd4 {[%clk 0:01:29.2]} 42... Kd6 {[%clk 0:00:26.6]} 43. Kc4
{[%clk 0:01:31.1]} 1-0

[Event "*** Titled Tuesday Blitz"]
[Site "Chess.com"]
[Date "2019.11.05"]
[Round "9"]
[White "davigator"]
[Black "HrvojeZagreb"]
[Result "0-1"]
[WhiteElo "2273"]
[BlackElo "2179"]
[TimeControl "180+2"]
[EndTime "15:06:49 PST"]
[Termination "HrvojeZagreb won by resignation"]

1. e4 {[%clk 0:03:01.9]} 1... e6 {[%clk 0:03:01]} 2. d4 {[%clk 0:03:02.2]} 2...
d5 {[%clk 0:03:02]} 3. Nc3 {[%clk 0:02:57]} 3... dxe4 {[%clk 0:03:02.6]} 4. Nxe4
{[%clk 0:02:57.3]} 4... Nd7 {[%clk 0:03:04.5]} 5. Nf3 {[%clk 0:02:58.5]} 5...
Ngf6 {[%clk 0:03:06.4]} 6. Ng3 {[%clk 0:02:59.7]} 6... b6 {[%clk 0:03:07.2]} 7.
Bd3 {[%clk 0:03:00.6]} 7... Bb7 {[%clk 0:03:08.4]} 8. Qe2 {[%clk 0:03:02]} 8...
c5 {[%clk 0:03:09.8]} 9. dxc5 {[%clk 0:02:58]} 9... Bxc5 {[%clk 0:03:11.7]} 10.
Bd2 {[%clk 0:02:57.9]} 10... O-O {[%clk 0:03:11.5]} 11. O-O-O {[%clk 0:02:58.7]}
11... Qc7 {[%clk 0:03:12.6]} 12. c4 {[%clk 0:02:59.6]} 12... b5 {[%clk
0:02:51.8]} 13. Kb1 {[%clk 0:02:54.6]} 13... bxc4 {[%clk 0:02:50.5]} 14. Bxc4
{[%clk 0:02:55.7]} 14... Rab8 {[%clk 0:02:48.2]} 15. Bc3 {[%clk 0:02:54.5]}
15... Bd5 {[%clk 0:02:36.4]} 16. Ne5 {[%clk 0:02:49.4]} 16... Bxf2 {[%clk
0:02:12.3]} 17. Bd3 {[%clk 0:02:40.2]} 17... Qxc3 {[%clk 0:02:05.9]} 18. Nxd7
{[%clk 0:02:40.4]} 18... Nxd7 {[%clk 0:02:03]} 19. Qxf2 {[%clk 0:02:40.7]} 19...
Rxb2+ {[%clk 0:01:33]} 20. Qxb2 {[%clk 0:02:39.4]} 20... Rb8 {[%clk 0:01:34]}
21. Qxb8+ {[%clk 0:02:40.2]} 21... Nxb8 {[%clk 0:01:34.2]} 22. Ne2 {[%clk
0:02:40.3]} 22... Qb4+ {[%clk 0:01:20.7]} 23. Kc1 {[%clk 0:02:35]} 23... Nc6
{[%clk 0:01:20.6]} 24. Rd2 {[%clk 0:02:34.7]} 24... Ne5 {[%clk 0:01:17.8]} 25.
Bb1 {[%clk 0:02:34.2]} 25... Nc4 {[%clk 0:00:42.3]} 26. Rc2 {[%clk 0:02:33.8]}
26... Qa3+ {[%clk 0:00:42]} 27. Kd1 {[%clk 0:02:34.3]} 27... Ne3+ {[%clk
0:00:37.3]} 28. Kd2 {[%clk 0:02:36.2]} 28... Nxc2 {[%clk 0:00:36.7]} 29. Bxc2
{[%clk 0:02:36.2]} 29... Qxa2 {[%clk 0:00:36.6]} 30. Nc3 {[%clk 0:02:36.5]}
30... Qa5 {[%clk 0:00:36.8]} 31. Rg1 {[%clk 0:02:33.6]} 31... g6 {[%clk
0:00:36.9]} 32. g3 {[%clk 0:02:33.7]} 32... e5 {[%clk 0:00:33.8]} 33. Re1 {[%clk
0:02:33.5]} 33... f6 {[%clk 0:00:34.4]} 34. Rd1 {[%clk 0:02:32.1]} 34... Be6
{[%clk 0:00:33.2]} 35. Rb1 {[%clk 0:02:31.8]} 35... f5 {[%clk 0:00:29.2]} 36.
Rb5 {[%clk 0:02:30.9]} 36... Qc7 {[%clk 0:00:28.8]} 37. Bd3 {[%clk 0:02:23.6]}
37... Qd6 {[%clk 0:00:23.9]} 38. Kc2 {[%clk 0:02:23.7]} 38... e4 {[%clk
0:00:19.1]} 39. Be2 {[%clk 0:02:24]} 39... h5 {[%clk 0:00:13.3]} 40. Rb7 {[%clk
0:02:21.2]} 40... a5 {[%clk 0:00:12.4]} 41. Ra7 {[%clk 0:02:21.7]} 41... Qc5
{[%clk 0:00:10.3]} 42. Ra6 {[%clk 0:02:20.9]} 42... Bf7 {[%clk 0:00:09.4]} 43.
h4 {[%clk 0:02:18.3]} 43... Qf2 {[%clk 0:00:09.4]} 44. Rxa5 {[%clk 0:02:12.5]}
44... Qxg3 {[%clk 0:00:10.1]} 45. Ra8+ {[%clk 0:02:10.9]} 45... Kg7 {[%clk
0:00:10.9]} 46. Ra7 {[%clk 0:02:12.2]} 46... Qxh4 {[%clk 0:00:10.2]} 47. Bc4
{[%clk 0:02:11.5]} 47... Qf2+ {[%clk 0:00:09.2]} 48. Kb3 {[%clk 0:02:12.1]}
48... Qxa7 {[%clk 0:00:10.9]} 49. Nb5 {[%clk 0:02:11.5]} 49... Bxc4+ {[%clk
0:00:10.4]} 50. Kxc4 {[%clk 0:02:11.8]} 50... Qa6 {[%clk 0:00:12.3]} 51. Kc5
{[%clk 0:02:12.4]} 51... Qxb5+ {[%clk 0:00:14]} 52. Kxb5 {[%clk 0:02:13.1]}
52... h4 {[%clk 0:00:15.9]} 53. Kc4 {[%clk 0:02:14.4]} 53... h3 {[%clk
0:00:17.8]} 54. Kd4 {[%clk 0:02:16.1]} 54... h2 {[%clk 0:00:19.7]} 0-1

[Event "*** Titled Tuesday Blitz"]
[Site "Chess.com"]
[Date "2019.11.05"]
[Round "9"]
[White "NoGalloNoParty"]
[Black "Irishchessman16"]
[Result "0-1"]
[WhiteElo "2273"]
[BlackElo "2210"]
[TimeControl "180+2"]
[EndTime "15:06:52 PST"]
[Termination "Irishchessman16 won by resignation"]

1. d4 {[%clk 0:03:01.9]} 1... Nf6 {[%clk 0:03:00.2]} 2. Nf3 {[%clk 0:03:01.7]}
2... e6 {[%clk 0:03:00]} 3. c4 {[%clk 0:02:50.4]} 3... d5 {[%clk 0:03:00.6]} 4.
g3 {[%clk 0:02:50]} 4... dxc4 {[%clk 0:02:53.2]} 5. Bg2 {[%clk 0:02:49.7]} 5...
Nc6 {[%clk 0:02:54.7]} 6. O-O {[%clk 0:02:48.9]} 6... Rb8 {[%clk 0:02:55.6]} 7.
e3 {[%clk 0:02:45.8]} 7... b5 {[%clk 0:02:51.5]} 8. b3 {[%clk 0:02:36.3]} 8...
Ba6 {[%clk 0:02:50.7]} 9. a4 {[%clk 0:02:24]} 9... bxa4 {[%clk 0:02:48.3]} 10.
bxc4 {[%clk 0:02:24.7]} 10... Bxc4 {[%clk 0:02:48.3]} 11. Qxa4 {[%clk
0:02:20.5]} 11... Bb5 {[%clk 0:02:49.1]} 12. Qd1 {[%clk 0:02:16.3]} 12... Bxf1
{[%clk 0:02:48.5]} 13. Qxf1 {[%clk 0:02:16.4]} 13... Bd6 {[%clk 0:02:46.6]} 14.
Nc3 {[%clk 0:02:15.1]} 14... O-O {[%clk 0:02:46.7]} 15. Nb5 {[%clk 0:02:15.5]}
15... Nd5 {[%clk 0:02:41]} 16. e4 {[%clk 0:02:10.2]} 16... Ndb4 {[%clk
0:02:37.3]} 17. Nxa7 {[%clk 0:01:53.4]} 17... Nxa7 {[%clk 0:02:37.1]} 18. Rxa7
{[%clk 0:01:55.3]} 18... c5 {[%clk 0:02:37.1]} 19. e5 {[%clk 0:01:32.8]} 19...
Be7 {[%clk 0:02:34.6]} 20. Be3 {[%clk 0:01:34.7]} 20... Nd5 {[%clk 0:02:34.2]}
21. Bd2 {[%clk 0:01:22.5]} 21... Qb6 {[%clk 0:02:32.9]} 22. Ra1 {[%clk
0:01:20.8]} 22... cxd4 {[%clk 0:02:32.6]} 23. h4 {[%clk 0:01:21.1]} 23... Bc5
{[%clk 0:02:18.9]} 24. Qd3 {[%clk 0:01:19.6]} 24... Qb5 {[%clk 0:02:18.6]} 25.
Qe4 {[%clk 0:01:19.5]} 25... Qb2 {[%clk 0:02:15.2]} 26. Re1 {[%clk 0:01:14.1]}
26... Nc3 {[%clk 0:02:09.7]} 27. Qg4 {[%clk 0:01:05.8]} 27... d3 {[%clk
0:02:01.5]} 28. h5 {[%clk 0:00:54.3]} 28... Ne2+ {[%clk 0:02:00.9]} 29. Kf1
{[%clk 0:00:44.4]} 29... f5 {[%clk 0:01:49.8]} 30. exf6 {[%clk 0:00:41.9]} 30...
Qxf6 {[%clk 0:01:50.1]} 31. Qc4 {[%clk 0:00:32]} 31... Nd4 {[%clk 0:01:17.6]}
32. Qxc5 {[%clk 0:00:27.8]} 32... Nxf3 {[%clk 0:01:18]} 33. Bc3 {[%clk
0:00:20.6]} 33... d2 {[%clk 0:01:15.6]} 34. Rd1 {[%clk 0:00:17.4]} 34... Qf5
{[%clk 0:01:04.9]} 35. Qxf5 {[%clk 0:00:17]} 35... Rxf5 {[%clk 0:01:04.9]} 36.
Bxf3 {[%clk 0:00:18.4]} 36... Rxf3 {[%clk 0:01:05.1]} 37. Rxd2 {[%clk
0:00:19.9]} 37... Rxc3 {[%clk 0:01:05.4]} 0-1

[Event "*** Titled Tuesday Blitz"]
[Site "Chess.com"]
[Date "2019.11.05"]
[Round "9"]
[White "Taron_Shagbazyan"]
[Black "Witik"]
[Result "0-1"]
[WhiteElo "2700"]
[BlackElo "2602"]
[TimeControl "180+2"]
[EndTime "15:06:53 PST"]
[Termination "Witik won by resignation"]

1. d4 {[%clk 0:03:01.9]} 1... d5 {[%clk 0:02:59.7]} 2. c4 {[%clk 0:03:03.4]}
2... e6 {[%clk 0:03:00.6]} 3. Nc3 {[%clk 0:03:04.9]} 3... c6 {[%clk 0:03:02]} 4.
Nf3 {[%clk 0:03:05.1]} 4... dxc4 {[%clk 0:03:02.7]} 5. a4 {[%clk 0:03:06.1]}
5... Bb4 {[%clk 0:03:03.3]} 6. e3 {[%clk 0:03:05.1]} 6... b5 {[%clk 0:03:04.1]}
7. Bd2 {[%clk 0:03:04.4]} 7... a5 {[%clk 0:03:04.9]} 8. axb5 {[%clk 0:03:04.8]}
8... Bxc3 {[%clk 0:03:06.2]} 9. Bxc3 {[%clk 0:03:04.3]} 9... cxb5 {[%clk
0:03:07.6]} 10. b3 {[%clk 0:03:00.8]} 10... Bb7 {[%clk 0:03:09.1]} 11. bxc4
{[%clk 0:03:01.9]} 11... b4 {[%clk 0:03:10.6]} 12. Bb2 {[%clk 0:02:52.4]} 12...
Nf6 {[%clk 0:03:12.1]} 13. Be2 {[%clk 0:02:49]} 13... Nbd7 {[%clk 0:03:11]} 14.
O-O {[%clk 0:02:49.9]} 14... Qc7 {[%clk 0:03:05.8]} 15. c5 {[%clk 0:02:47.8]}
15... O-O {[%clk 0:03:04.1]} 16. h3 {[%clk 0:02:44]} 16... Bc6 {[%clk
0:03:01.7]} 17. Ra4 {[%clk 0:02:22.8]} 17... Rfb8 {[%clk 0:02:47.3]} 18. Nd2
{[%clk 0:02:14.2]} 18... e5 {[%clk 0:02:10.1]} 19. Nc4 {[%clk 0:02:10.2]} 19...
Bxa4 {[%clk 0:02:10.9]} 20. Qxa4 {[%clk 0:02:10.7]} 20... exd4 {[%clk 0:02:12]}
21. exd4 {[%clk 0:02:11.9]} 21... b3 {[%clk 0:02:02.1]} 22. Bc3 {[%clk 0:01:55]}
22... Nd5 {[%clk 0:02:02.6]} 23. Bxa5 {[%clk 0:01:55.6]} 23... Nc3 {[%clk
0:01:43.5]} 24. Bxc7 {[%clk 0:01:33.7]} 24... Nxe2+ {[%clk 0:01:43.5]} 25. Kh2
{[%clk 0:01:34]} 25... Rxa4 {[%clk 0:01:45.4]} 26. Bxb8 {[%clk 0:01:31.6]} 26...
Rxc4 {[%clk 0:01:44.1]} 27. Re1 {[%clk 0:01:29.8]} 27... b2 {[%clk 0:01:25.1]}
28. Rb1 {[%clk 0:01:23.2]} 28... Rc2 {[%clk 0:01:20.2]} 29. c6 {[%clk
0:00:48.9]} 29... Nb6 {[%clk 0:01:11.5]} 30. c7 {[%clk 0:00:25.9]} 30... Nc3
{[%clk 0:01:03]} 31. Re1 {[%clk 0:00:26.1]} 31... Re2 {[%clk 0:00:42.7]} 0-1

[Event "*** Titled Tuesday Blitz"]
[Site "Chess.com"]
[Date "2019.11.05"]
[Round "9"]
[White "Bathory44"]
[Black "Oligan22"]
[Result "0-1"]
[WhiteElo "2602"]
[BlackElo "2480"]
[TimeControl "180+2"]
[EndTime "15:07:04 PST"]
[Termination "Oligan22 won by resignation"]

1. e4 {[%clk 0:03:01.9]} 1... c6 {[%clk 0:03:00.7]} 2. c4 {[%clk 0:03:02.3]}
2... d5 {[%clk 0:03:01.1]} 3. exd5 {[%clk 0:03:03.4]} 3... cxd5 {[%clk 0:03:03]}
4. cxd5 {[%clk 0:03:05]} 4... Nf6 {[%clk 0:03:01.5]} 5. Nc3 {[%clk 0:03:06]}
5... Nxd5 {[%clk 0:02:56.5]} 6. Nf3 {[%clk 0:03:05.9]} 6... Nc6 {[%clk
0:02:54.7]} 7. Bb5 {[%clk 0:03:06.4]} 7... Nxc3 {[%clk 0:02:54.2]} 8. bxc3
{[%clk 0:03:06.7]} 8... Qc7 {[%clk 0:02:47.5]} 9. O-O {[%clk 0:03:05.6]} 9...
Bg4 {[%clk 0:02:40.7]} 10. h3 {[%clk 0:03:03.7]} 10... Bh5 {[%clk 0:02:38]} 11.
Re1 {[%clk 0:03:01.3]} 11... e6 {[%clk 0:02:37]} 12. d4 {[%clk 0:02:54.6]} 12...
Be7 {[%clk 0:02:33.1]} 13. d5 {[%clk 0:02:46.9]} 13... Rd8 {[%clk 0:02:33.5]}
14. c4 {[%clk 0:02:01.8]} 14... O-O {[%clk 0:02:32.6]} 15. Bb2 {[%clk
0:01:49.4]} 15... a6 {[%clk 0:02:09.1]} 16. Ba4 {[%clk 0:01:27.4]} 16... b5
{[%clk 0:01:57.2]} 17. cxb5 {[%clk 0:01:20.5]} 17... Rxd5 {[%clk 0:01:57.6]} 18.
Qe2 {[%clk 0:01:01.1]} 18... axb5 {[%clk 0:01:50.7]} 19. Bb3 {[%clk 0:00:43.1]}
19... Bxf3 {[%clk 0:01:21.2]} 20. Qxf3 {[%clk 0:00:42.7]} 20... Nd4 {[%clk
0:00:58.2]} 21. Bxd4 {[%clk 0:00:20.2]} 21... Rxd4 {[%clk 0:00:58.9]} 22. Rac1
{[%clk 0:00:21.7]} 22... Qb6 {[%clk 0:00:54.3]} 23. Rc6 {[%clk 0:00:22]} 23...
Qa5 {[%clk 0:00:41.7]} 24. Rec1 {[%clk 0:00:21.5]} 24... Bg5 {[%clk 0:00:37.5]}
25. R1c2 {[%clk 0:00:18.5]} 25... Qe1+ {[%clk 0:00:31.6]} 26. Kh2 {[%clk
0:00:19.3]} 26... Rf4 {[%clk 0:00:23.2]} 27. Qg3 {[%clk 0:00:18.4]} 27... Rf5
{[%clk 0:00:21.1]} 28. Qg4 {[%clk 0:00:15.5]} 28... Bf4+ {[%clk 0:00:20.3]} 29.
g3 {[%clk 0:00:16.8]} 29... Be5 {[%clk 0:00:20.5]} 30. Kg2 {[%clk 0:00:18.2]}
30... h5 {[%clk 0:00:20.5]} 31. Qe4 {[%clk 0:00:19.2]} 31... Qxe4+ {[%clk
0:00:20.5]} 0-1